Cogmind - Beta 13 @@@ ROGUE MODE // 2024.04.08 @ 13:34:43 Player: Vriska Result: Destroyed by S-10 Pest with Light Assault Rifle Performance ------------- Evolutions (0) 0 Regions Visited (4) 800 Robots Destroyed (19) 95 Value Destroyed (367) 367 Prototype IDs (1) 20 Alien Tech Used (0) 0 Bonus (300) 300 TOTAL SCORE: 1582 Bonus ------- Aligned with FarCom 300 Cogmind --------- Core Integrity 0/250 Matter 232/300 Energy 248/250 System Corruption 2% Temperature Cool (0) Movement Walking (120) Location -9/Mines Parts ------- > --- POWER (1) -------- Ion Engine > --- PROPULSION (2) --- Aluminum Leg (fused) Aluminum Leg > --- UTILITY (2) ------ Signal Interpreter Core Shielding > --- WEAPON (2) ------- Assault Rifle Light Assault Rifle > --- INVENTORY (5) ---- Light Armor Plating Trap Reconfigurator Light Assault Rifle Light Assault Rifle Mining Laser Peak State ------------ > --- POWER ------------ Ion Engine > --- PROPULSION ------- Aluminum Leg Aluminum Leg > --- UTILITY ---------- Signal Interpreter Trap Reconfigurator > --- WEAPON ----------- Assault Rifle Light Assault Rifle > --- INVENTORY -------- Core Shielding Light Armor Plating Light Assault Rifle Light Assault Rifle Mining Laser [Rating: 15] Favorites ----------- Power Ion Engine Engine Ion Engine Propulsion Aluminum Leg Treads Light Treads Leg Aluminum Leg Flight Unit Flight Unit Utility Signal Interpreter Device Sensor Array Storage Small Storage Unit Processor Signal Interpreter Protection Light Armor Plating Weapon Light Assault Rifle Energy Gun EM Pulse Gun Ballistic Gun Light Assault Rifle Build | -11 -10 -10 -10 -9 ------- Run | Yrd Mat Min Exi Min Slots Evolved . | . . . . . Power . | . . . . . Propulsion . | . . . . . Utility . | . . . . . Weapon . | . . . . . Parts Attached 29 | 7 18 2 2 . Power 4 | 1 3 . . . Engine 4 | 1 3 . . . Core . | . . . . . Reactor . | . . . . . Propulsion 8 | 2 6 . . . Treads 2 | 2 . . . . Leg 2 | . 2 . . . Wheel . | . . . . . Hover . | . . . . . Flight 4 | . 4 . . . Utility 8 | 1 4 1 2 . Device 3 | . 2 . 1 . Storage 1 | 1 . . . . Processor 1 | . 1 . . . Hackware . | . . . . . Protection 3 | . 1 1 1 . Artifact . | . . . . . Weapon 9 | 3 5 1 . . Energy Gun 3 | 3 . . . . Energy Cannon . | . . . . . Ballistic Gun 6 | . 5 1 . . Ballistic Cannon . | . . . . . Launcher . | . . . . . Special Weapon . | . . . . . Impact Weapon . | . . . . . Slashing Weapon . | . . . . . Piercing Weapon . | . . . . . Special Melee Weapon . | . . . . . Unidentified Prototypes 1 | . . . 1 . Corrupted Parts 2 | . 2 . . . System Corruption 2 | . 2 . . . Parts Lost 9 | . 9 . . . Power 2 | . 2 . . . Propulsion 3 | . 3 . . . Utility . | . . . . . Weapon 4 | . 4 . . . Highest Loss Streak 6 | . 6 . . . To Critical Strikes . | . . . . . Average Slot Usage (%) 95 | . 92 100 100 100 Engine 13 | . 13 14 14 14 Treads 7 | . 11 . . . Leg 17 | . 12 28 28 28 Flight 1 | . 2 . . . Device 4 | . 6 8 . . Storage 3 | . 5 . . . Processor 10 | . 8 14 14 14 Protection 7 | . 4 5 13 14 Energy Gun 8 | . 12 . . . Ballistic Gun 17 | . 12 28 28 28 Naked Turns . | . . . . . Heaviest Build 17 | 14 17 11 11 . Greatest Support 46 | 40 46 20 20 . Greatest Overweight (x) . | . . . . . Average Overweight (x) . | . . . . . Largest Inventory Capacity 8 | 8 8 5 5 5 Average Capacity 5 | 6 6 5 5 5 Most Carried 6 | 5 6 5 5 5 Average Carried 4 | 2 4 4 4 5 Final Capacity 8 | 8 5 5 5 5 Final Carried 5 | 2 5 5 5 5 Class Distribution -------------------- 70% | Mutant 29% | Scavenger-Mutant Dominant Class ---------------- Mutant | -10/Materials Mutant | -10/Mines Mutant | -10/Exiles Mutant | -9/Mines Resources | -11 -10 -10 -10 -9 ----------- Run | Yrd Mat Min Exi Min Matter Collected 508 | 198 296 14 . . Remotely . | . . . . . Salvage Created 566 | . 527 . . 39 Parts 45 | . 37 . . 8 Haulers Intercepted 1 | . 1 . . . Recyclers Shooed . | . . . . . Parts Field Recycled . | . . . . . Retrieved Matter . | . . . . . Parts Self-Destructed . | . . . . . Prevented . | . . . . . Kills | -11 -10 -10 -10 -9 ------- Run | Yrd Mat Min Exi Min Combat Hostiles Destroyed 13 | . 10 . . 3 Guns 13 | . 10 . . 3 Classes Destroyed 6 | . 6 . . . Worker 1 | . 1 . . . Builder 1 | . 1 . . . Hauler 1 | . 1 . . . Watcher 3 | . 3 . . . Swarmer 6 | . 3 . . 3 Grunt 7 | . 7 . . . Best Kill Streak 5 | . 5 . . 3 Combat Bots Only 3 | . 3 . . 3 Max Kills in Single Turn 2 | . 2 . . 2 Gunslinging 1 | . . . . 1 Exploded . | . . . . . Melee . | . . . . . Uniques/NPCs Destroyed . | . . . . . Combat | -11 -10 -10 -10 -9 -------- Run | Yrd Mat Min Exi Min Hostile Shots Fired 119 | . 109 . . 10 Missed 39 | . 37 . . 2 Damage Taken 885 | . 820 . . 65 Core 250 | . 229 . . 21 Absorbed by Shields . | . . . . . Redirected to Shielding 5 | . . . . 5 Core Remaining (%) 100 | 100 . . . . Volleys Fired 67 | . 63 . . 4 Largest 2 | . 2 . . 2 Hottest 80 | . 80 . . 40 Shots Fired 107 | . 98 . 1 8 Gun 107 | . 98 . 1 8 Cannon . | . . . . . Launcher . | . . . . . Special . | . . . . . Kinetic 66 | . 57 . 1 8 Thermal . | . . . . . Explosive . | . . . . . Electromagnetic 41 | . 41 . . . Robot Hit Streak 10 | . 10 . . 3 Robot Miss Streak 5 | . 4 . . 5 Penetration Max . | . . . . . Secondary Targets 1 | . . . . 1 Max Gunslinging Chain 1 | . . . . 1 Shots Hit Robots 60 | . 57 . . 3 Core Hits 27 | . 24 . . 3 Critical Kills . | . . . . . Critical Parts Destroyed 1 | . 1 . . . Critical Strikes 2 | . 2 . . . Destroy 1 | . 1 . . . Corrupt 1 | . 1 . . . Melee Attacks . | . . . . . Impact . | . . . . . Slashing . | . . . . . Piercing . | . . . . . Sneak Attacks . | . . . . . Combat Hostiles . | . . . . . Follow-up Attacks . | . . . . . Damage Inflicted 829 | . 783 . . 46 Guns 749 | . 703 . . 46 Cannons . | . . . . . Explosions 80 | . 80 . . . Melee . | . . . . . Ramming . | . . . . . Kinetic 330 | . 284 . . 46 Thermal 80 | . 80 . . . Explosive . | . . . . . Electromagnetic 419 | . 419 . . . Impact . | . . . . . Slashing . | . . . . . Piercing . | . . . . . Highest Corruption 2 | . 2 2 2 2 Average Corruption 1 | . 1 2 2 2 Corruption Purged . | . . . . . Corruption Blocked . | . . . . . Effects 18 | . 11 . 7 . Message Errors 7 | . 4 . 3 . Matter Fused 4 | . 3 . 1 . Heat Flow Errors 2 | . . . 2 . Energy Discharges 2 | . 2 . . . Parts Fused 1 | . 1 . . . Data Loss (minor) 1 | . 1 . . . Misfires 1 | . . . 1 . Overload Shots . | . . . . . Overflow Damage . | . . . . . Projectiles . | . . . . . Explosions . | . . . . . Melee . | . . . . . Knockbacks . | . . . . . Impact . | . . . . . Kinetic . | . . . . . Secondary . | . . . . . Self-Inflicted Damage 12 | . 12 . . . Shots 1 | . 1 . . . Rammed . | . . . . . Targets Rammed . | . . . . . Kicked . | . . . . . Crushed . | . . . . . Highest Temperature 195 | . 195 . 195 . Average Temperature 64 | . 61 . 85 . Received Heat Transfer 444 | . 444 . . . Siege Activations . | . . . . . Robots Corrupted . | . . . . . Combat Hostiles . | . . . . . Parts Fried 2 | . 2 . . . Impact Corruptions . | . . . . . Robots Melted . | . . . . . Combat Hostiles . | . . . . . Parts Melted . | . . . . . Heat Transferred 150 | . 150 . . . Parts Sabotaged . | . . . . . Parts Stolen . | . . . . . Parts Stripped . | . . . . . Power Chain Reactions 1 | . 1 . . . Alert | -11 -10 -10 -10 -9 ------- Run | Yrd Mat Min Exi Min Peak Influence 147 | . 147 . . 70 Initial . | . . . . . Average 21 | . 23 . . 53 Maximum Alert Level . | . . . . . Low Security (%) 100 | 100 100 100 . 100 Level 1 . | . . . . . Level 2 . | . . . . . Level 3 . | . . . . . Level 4 . | . . . . . Level 5 . | . . . . . High Security . | . . . . . Max Security . | . . . . . Squads Dispatched 2 | . 2 . . . Investigation . | . . . . . Extermination . | . . . . . Reinforcement 2 | . 2 . . . Assault . | . . . . . Garrison . | . . . . . Intercept . | . . . . . Searches Triggered . | . . . . . Construction Impeded . | . . . . . Haulers Reinforced . | . . . . . Active Scanning Responses . | . . . . . Cargo Convoy Interrupts . | . . . . . Stealth | -11 -10 -10 -10 -9 --------- Run | Yrd Mat Min Exi Min Distress Signals 1 | . 1 . . . Communications Jammed . | . . . . . Distress Signals . | . . . . . Times Spotted 22 | . 19 . . 3 Peak Tracking Total 4 | . 4 . . 3 Tactical Retreats 1 | . 1 . . . Traps | -11 -10 -10 -10 -9 ------- Run | Yrd Mat Min Exi Min Traps Triggered . | . . . . . Indirectly . | . . . . . Trap Hack Attempts . | . . . . . Triggered . | . . . . . Disarmed . | . . . . . Reprogrammed . | . . . . . Reused . | . . . . . Traps Extracted . | . . . . . Installed . | . . . . . Triggered . | . . . . . Machines | -11 -10 -10 -10 -9 ---------- Run | Yrd Mat Min Exi Min Machines Disabled . | . . . . . Max in Single Turn . | . . . . . Machines Repaired . | . . . . . Machines Dismantled . | . . . . . Machines Sabotaged . | . . . . . Overloaded Fab Kills . | . . . . . Hacking | -11 -10 -10 -10 -9 --------- Run | Yrd Mat Min Exi Min Machines Accessed 4 | . 4 . . . Terminals 2 | . 2 . . . Fabricators . | . . . . . Repair Stations . | . . . . . Recycling Units 2 | . 2 . . . Scanalyzers . | . . . . . Garrison Access . | . . . . . Total Hacks 12 | . 12 . . . Successful 5 | . 5 . . . Failed 7 | . 7 . . . Catastrophic 1 | . 1 . . . Database Lockouts . | . . . . . Manual 1 | . . . 1 . Terminals 8 | . 8 . . . Fabricators . | . . . . . Repair Stations . | . . . . . Recycling Units 4 | . 4 . . . Scanalyzers . | . . . . . Garrison Access . | . . . . . Terminal Hacks 3 | . 3 . . . Record 2 | . 2 . . . Alert Level 1 | . 1 . . . Fabricator Hacks . | . . . . . Repair Station Hacks . | . . . . . Recycling Unit Hacks 2 | . 2 . . . Report Inventory 1 | . 1 . . . Retrieve Matter 1 | . 1 . . . Scanalyzer . | . . . . . Garrison Access Hacks . | . . . . . Unauthorized Hacks . | . . . . . Terminals . | . . . . . Fabricators . | . . . . . Repair Stations . | . . . . . Recycling Units . | . . . . . Scanalyzers . | . . . . . Garrison Access . | . . . . . Data Cores Recovered . | . . . . . Used . | . . . . . Hacking Detections 3 | . 3 . . . Full Trace Events . | . . . . . Feedback Events . | . . . . . Feedback Blocked . | . . . . . Robot Schematics Acquired . | . . . . . Robots Built . | . . . . . Authchips . | . . . . . Time . | . . . . . Total Robot Build Rating . | . . . . . Part Schematics Acquired . | . . . . . Parts Built . | . . . . . Authchips . | . . . . . Time . | . . . . . Total Part Build Rating . | . . . . . Parts Repaired . | . . . . . Time . | . . . . . Parts Recycled . | . . . . . Recycled Matter . | . . . . . Retrieved Matter . | . . . . . Retrieved Components . | . . . . . Parts Scanalyzed . | . . . . . Part Schematics Acquired . | . . . . . Parts Damaged . | . . . . . Bothacking | -11 -10 -10 -10 -9 ------------ Run | Yrd Mat Min Exi Min Used RIF Installer . | . . . . . Robots Hacked . | . . . . . Non-combat . | . . . . . Combat . | . . . . . Robot Hacks Applied . | . . . . . Relay Couplers Released . | . . . . . Fabnet Peak Effective % . | . . . . . Robots Rewired . | . . . . . Allies Hacked . | . . . . . Hacks Repelled . | . . . . . Allies | -11 -10 -10 -10 -9 -------- Run | Yrd Mat Min Exi Min Total Allies . | . . . . . Largest Group . | . . . . . Highest-Rated Group . | . . . . . Highest-Rated Ally . | . . . . . Total Orders . | . . . . . Ally Attacks . | . . . . . Total Damage . | . . . . . Kills . | . . . . . Allies Corrupted . | . . . . . Allies Melted . | . . . . . Intel | -11 -10 -10 -10 -9 ------- Run | Yrd Mat Min Exi Min Robot Analysis Total . | . . . . . Derelict Logs Recovered . | . . . . . Drone Launches . | . . . . . Drone Recoveries . | . . . . . Exploration | -11 -10 -10 -10 -9 ------------- Run | Yrd Mat Min Exi Min Turns Passed 2425 | 94 1521 52 749 9 Spaces Moved 1757 | 53 1045 39 620 . Core 21 | 5 16 . . . Treads 405 | 48 357 . . . Legs 1195 | . 536 39 620 . Wheels . | . . . . . Hover . | . . . . . Flight 136 | . 136 . . . Fastest Speed 37 | 50 37 120 120 . Average Speed 122 | 149 121 120 120 . Slowest Speed 160 | 160 160 120 120 . Overloaded Moves . | . . . . . Propulsion Burnouts . | . . . . . Robots Hopped 8 | . 8 . . . Cave-ins Triggered . | . . . . . Exploration Rate (%) 36 | 3 72 13 90 4 Regions Visited 4 Branch Regions 3 Pre-discovered Areas . | . . . . . Known Exits Taken 3 | . 1 1 1 . Unknown Exits Taken 1 | 1 . . . . Scrap Searched 1 | . . 1 . . Spaces Dug . | . . . . . Terrain Destroyed 6 | . 6 . . . Melee . | . . . . . Projectile . | . . . . . AOE 6 | . 6 . . . Terrain Rammed . | . . . . . Walls Destroyed . | . . . . . Machines Disabled . | . . . . . Actions | -11 -10 -10 -10 -9 --------- Run | Yrd Mat Min Exi Min Total 1944 | 68 1204 44 624 4 Wait 49 | . 48 . 1 . Move 1738 | 52 1029 38 619 . Hop 7 | . 7 . . . Pick Up 37 | 8 26 2 1 . Fast Attach . | . . . . . Attach 25 | 7 17 1 . . Detach 1 | 1 . . . . Swap 4 | . 1 1 2 . Drop 16 | . 13 2 1 . Fire 67 | . 63 . . 4 Melee . | . . . . . Ram . | . . . . . Kick . | . . . . . Crush . | . . . . . Escape Stasis . | . . . . . Rewire . | . . . . . Trap . | . . . . . Miscellaneous . | . . . . . Route ------- -11/Scrapyard -10/Materials (discovered 4 exits: *Mat / *Min x2 / [*Sub]) -10/Mines -10/Exiles (discovered 2 exits: *Min x2) -9/Mines History --------- Turn | Location | Event 25 | -11/Scrapyard | Discovered new exit (range 16) 95 | -11/Scrapyard | Entered Materials 313 | -10/Materials | Build established: Mutant 578 | -10/Materials | Discovered new exit (range 15) 826 | -10/Materials | Core integrity fell below 50% 860 | -10/Materials | Lost 6 parts (1p2n3w) 869 | -10/Materials | Core integrity fell below 20% 987 | -10/Materials | Discovered new exit (range 15) 1138 | -10/Materials | Discovered new exit (range 8) 1146 | -10/Materials | Identified exit to Materials 1236 | -10/Materials | Build established: Scavenger-Mutant 1404 | -10/Materials | Discovered new exit (range 11) 1615 | -10/Materials | Identified exit to Mines 1616 | -10/Materials | Entered Mines 1658 | -10/Mines | Met a Derelict bent on vengeance 1659 | -10/Mines | Deemed a non-threat by the Exiles lab entrance 1660 | -10/Mines | Discovered new exit (range 5) 1665 | -10/Mines | Identified exit to Exiles 1668 | -10/Mines | Entered Exiles 1697 | -10/Exiles | Discovered new exit (range 15) 1715 | -10/Exiles | Identified exit to Mines 1751 | -10/Exiles | Met 8R-AWN 1780 | -10/Exiles | Met EX-HEX 1835 | -10/Exiles | Met EX-BIN 1858 | -10/Exiles | Aligned with FarCom system 1859 | -10/Exiles | Given EX-Vault access code 1895 | -10/Exiles | Opened EX-Vault 1903 | -10/Exiles | Found Prototype Device 1904 | -10/Exiles | Identified Trap Reconfigurator 1930 | -10/Exiles | Warned to stay clear of 0b10 Research branches 1937 | -10/Exiles | Build established: Mutant 1972 | -10/Exiles | Met EX-DEC 2056 | -10/Exiles | Discovered exit to Mines (range 10) 2183 | -10/Exiles | Visited The Gauntlet 2417 | -10/Exiles | Left Exiles lab with Trap Reconfigurator 2417 | -10/Exiles | Entered Mines 2426 | -9/Mines | Destroyed by S-10 Pest with Light Assault Rifle Last Messages --------------- Chronowheel, only to never be seen again. J5-HVA: Are you here to join us? Sorry but we don't have any workstations ready for assignment just yet. We're probably going to have to pack up and move anyway, seeing as the Mines are expanding a bit too close for comfort. DK-RAY: Welcome to The Gauntlet! If a prototype's bugged this is where we stop it. Unless we don't. But that rarely happens, honest! System corrupted: FCS attempts to trigger Assault Rifle. System corrupted: Assault Rifle misfires. LOCATION=MINES GOAL=ESCAPE Receiving FarCom transmissions... S-10 Pest destroyed. Switching to secondary target: S-10 Pest. S-10 Pest destroyed. Map ----- +----------------------------------------------------+ | | | | | | | | | | | | | | | | | | | | | | | | | | | | | | | | | | | ?????????????????????????????????????? | | ?????????????????????????????????????? | | ??????????????????????????###????????? | | ?????????????????????????# ##???????? | | ????????????????????????# ##??????? | | ???????????????????????## [% ##?????? | | ???????????????????##### === #?????? | | ???????????????????# [*s #?????? | | ???????????????????# @*%[ #?????? | | ???????????????????## ##?????? | | ????????????????????## ##??????? | | ?????????????????????## #???????? | | ?????????????????????? ##???????? | | ?????????????????????# ##????????? | | ????????????????????? ####?????????? | | ????????????????????## ?????????????? | | ?????????????????????# ?????????????? | | ?????????????????????# ?????????????? | | ????????????????????? ??????????????? | | ????????????????????? ??????????????? | | ???????????????????? ??????????????? | | ???????????????????? ??????????????? | | ????????????????????? ???????????????? | | ?????????????????????????????????????? | | ?????????????????????????????????????? | | ?????????????????????????????????????? | | ?????????????????????????????????????? | | ?????????????????????????????????????? | | ?????????????????????????????????????? | | ?????????????????????????????????????? | | ?????????????????????????????????????? | | ?????????????????????????????????????? | | ?????????????????????????????????????? | +----------------------------------------------------+ Best States ------------- Heat Dissipation 25 Energy Generation 10 Energy Capacity 250 Matter Stores 300 Matter Capacity 300 Sight Range 16 Robot Scan Range 14 Terrain Scan Density 10 Additional Mass Support 6 Armor Coverage 150 Core Shielding 20 Evasion (%) 62 Recoil Reduction 2 Item Schematics ----------------- None Robot Schematics ------------------ None Fabricated ------------ Nothing Alien Tech Used ----------------- None Achievements -------------- None Challenges ------------ None Game ------ Seed EnhancedLayeredBrace Manual? 0 Play Time 00:20:49 Cumulative 7.8 hours Start 2024.04.08 @ 13:10:33 End 2024.04.08 @ 13:34:43 Sessions 1 Manual Loads 0 Difficulty Rogue Special Mode None Game No. 17 Rogue 17 Adventurer 0 Explorer 0 Win Type - Total 0 Types 0/0/0/0/0/0/0/0/0 Lore% 17 Gallery% 13 Achievement% 15 Wizard Run 0 Options --------- Layout 1 ASCII 0 Keyboard 0 Movement Arrows Keybinds 0 Fullscreen 1 Font 24/Smallcaps Map View 50x35 Zoom Use 0% Tactical HUD 0 Map Filters NONE Filters NONE Steam 1 RUN: 1b129a9e-5461-4940-86a0-85e0663fb44e